bitfinex/quotes_ETHUSD_20210401
["timestamp","ask_amount","ask_price","bid_price","bid_amount"]
[1617307799487,7.40266495,1977.6,1977.4,7.53495]
[1617307800089,6.99266495,1977.6,1977.4,7.53495]
[1617307801493,8.58266495,1977.6,1977.3,7.58533]
[1617307801696,3.74581228,1977.5,1976.9,0.41191561]
[1617307801912,3.74581228,1977.5,1976.9,0.58676725]
[1617307801913,0.14,1977.4,1976.9,0.58676725]
[1617307802708,5.01,1977.3,1976.9,0.30676725]
[1617307802910,0.41,1977.2,1977.0,10.11624]
[1617307803109,8.41,1977.3,1977.0,10.11624]
[1617307803310,8.82,1977.3,1977.0,10.11624]
[1617307803708,12.56581228,1977.3,1977.0,10.11624]
[1617307803909,0.41,1977.2,1977.0,10.11624]
[1617307804112,3.74581228,1977.1,1977.0,10.11624]
[1617307804537,5.33581228,1977.1,1977.0,10.11624]
[1617307804736,5.33581228,1977.1,1976.7,2.0]
[1617307804939,5.01,1976.9,1976.7,2.0]
[1617307805136,3.74581228,1976.8,1976.7,2.0]
[1617307805739,4.14581228,1977.0,1976.7,2.0]
[1617307805937,3.74581228,1977.0,1976.7,2.4]
[1617307806138,3.74581228,1977.0,1976.7,2.0]
[1617307806139,3.88,1976.9,1976.7,2.0]
[1617307806339,5.46,1976.9,1976.7,9.58836]
[1617307806538,13.54581228,1976.8,1976.7,2.0]
[1617307806944,17.65,1976.7,1976.3,0.006]
[1617307807165,17.65,1976.7,1976.2,0.286]
[1617307807166,0.39,1976.6,1976.2,0.286]
[1617307807366,0.39,1976.6,1976.2,0.28]
[1617307807566,0.39,1976.6,1976.1,0.006]
[1617307807567,4.03,1976.5,1976.1,0.006]
[1617307807764,3.74708004,1976.4,1976.1,0.006]
[1617307808167,3.74708004,1976.4,1976.0,0.006]
[1617307808168,25.16,1976.2,1976.0,0.006]
[1617307808370,36.80708004,1976.1,1976.0,0.006]
[1617307808566,29.3,1976.0,1975.8,1.69629354]
[1617307808767,45.48233974,1976.1,1975.5,0.01698318]
[1617307808768,34.25708004,1975.9,1975.5,0.01698318]
[1617307808967,34.25708004,1975.9,1975.4,0.01699372]
[1617307808968,25.21529904,1975.8,1975.4,0.01699372]
[1617307809166,3.7314209,1975.7,1975.3,0.01699919]
[1617307809369,0.54,1975.6,1975.3,0.01699919]
[1617307809571,0.54,1975.6,1974.9,12.65279]
[1617307809572,29.3,1975.4,1974.9,0.08494057]
[1617307809798,5.01,1975.2,1974.8,0.08497036]
[1617307809994,10.86,1974.9,1974.8,0.08497036]
[1617307810196,5.87,1974.9,1974.7,0.17639701]
[1617307810394,5.87,1974.9,1974.7,0.58639701]
[1617307810793,5.87,1974.9,1974.8,17.1]
[1617307810994,5.87,1974.9,1974.8,24.780649]
[1617307811192,5.87,1974.9,1974.8,30.020649]
[1617307811393,9.1227854,1975.5,1974.8,12.920649]
[1617307811595,0.39,1975.2,1974.8,7.680649]
[1617307811794,3.7227854,1975.1,1974.7,10.30285855]
[1617307811992,3.8627854,1975.1,1974.7,10.30285855]
[1617307812405,0.14,1975.1,1974.7,10.30285855]
[1617307812606,0.14,1975.1,1974.7,10.21778494]
[1617307812810,0.14,1975.1,1974.7,10.12646]
[1617307814210,0.14,1975.1,1974.7,10.21159047]
[1617307814609,0.14,1975.1,1974.7,10.50646]
[1617307814815,0.14,1975.1,1974.7,10.12646]
[1617307815032,0.14,1975.1,1974.7,10.52646]
[1617307816234,0.14,1975.1,1974.7,10.12646]
[1617307820062,0.14,1975.1,1974.7,10.52646]
[1617307820286,4.9227854,1975.4,1975.1,0.72453612]
[1617307820287,8.6752597,1975.4,1975.1,0.72453612]
[1617307820532,17.4185597,1975.6,1975.1,0.72453612]
[1617307820730,3.7227715,1975.5,1975.1,0.72453612]
[1617307820932,5.06,1975.4,1974.7,10.12646]
[1617307821131,3.7227715,1975.3,1974.8,0.41]
[1617307821530,3.7227715,1975.3,1974.9,7.59528]
[1617307821731,4.1227715,1975.3,1974.9,7.59528]
[1617307822333,8.7327715,1975.3,1974.9,7.59528]
[1617307822531,0.16062943,1975.1,1974.9,7.59528]
[1617307826139,1.60287575,1975.1,1974.9,7.59528]
[1617307826540,11.0,1975.0,1974.9,7.59528]
[1617307827341,11.0,1975.0,1974.9,7.99528]
[1617307827740,11.0,1975.0,1974.9,24.64528]
[1617307827944,11.0,1975.0,1974.9,11.67528]
[1617307828171,11.0,1975.0,1974.9,7.99528]
[1617307828566,11.0,1975.0,1974.9,17.99528]
[1617307828966,11.0,1975.0,1974.9,7.99528]
[1617307829366,11.0,1975.0,1974.9,10.71528]
[1617307829565,11.0,1975.0,1974.9,10.66528]
[1617307830168,11.0,1975.0,1974.9,10.26528]
[1617307830573,11.0,1975.0,1974.9,18.22528]
[1617307830574,10.10599953,1975.0,1974.9,18.22528]
[1617307831387,10.10599953,1975.0,1974.9,10.67528]
[1617307832387,10.10599953,1975.0,1974.9,7.95528]
[1617307832988,10.05599953,1975.0,1974.9,16.40528]
[1617307833192,10.05599953,1975.0,1974.9,7.95528]
[1617307833410,10.05599953,1975.0,1974.9,10.65528]
[1617307834415,10.05599953,1975.0,1974.9,7.95528]
[1617307834615,10.05599953,1975.0,1974.9,16.10528]
[1617307834814,10.05599953,1975.0,1974.9,7.95528]
[1617307835424,10.05599953,1975.0,1974.9,7.54528]
[1617307838893,10.05599953,1975.0,1974.9,10.62528]
[1617307839495,10.05599953,1975.0,1974.9,19.27528]
[1617307839693,11.07727051,1975.0,1974.9,19.27528]
[1617307839893,10.05599953,1975.0,1974.9,19.27528]
[1617307841502,10.05599953,1975.0,1974.9,36.97528]
[1617307841701,9.43e-06,1975.1,1975.0,29.3]
[1617307841898,39.5261,1975.8,1975.0,45.8365]
[1617307841899,28.4962,1975.8,1975.0,45.8365]
[1617307842103,22.7488,1976.3,1975.7,19.94]
[1617307842305,0.14,1976.2,1975.9,0.4]
[1617307842498,22.7488,1976.3,1975.9,0.4]
[1617307842698,8.5563,1976.3,1975.9,0.4]
[1617307842898,0.14,1976.4,1975.9,0.4]
[1617307843099,0.54,1976.4,1975.8,3.7952]
[1617307843301,0.54,1976.4,1976.1,7.59106]
[1617307843302,0.14,1976.4,1976.1,7.59106]
[1617307843499,26.12814302,1976.7,1975.9,10.50053]
[1617307843500,8.8,1976.6,1975.9,10.50053]
[1617307843702,4.1,1976.5,1975.9,10.50053]
[1617307844323,5.01,1976.3,1975.9,10.50053]
[1617307844522,6.21,1976.3,1975.9,10.50053]
[1617307844723,5.01,1976.1,1975.9,10.50053]
[1617307845122,5.01,1976.2,1975.9,10.12053]
[1617307845323,3.73820378,1976.1,1975.9,10.12053]
[1617307847939,3.73820378,1976.1,1975.8,10.12216]
[1617307848538,8.74820378,1976.1,1975.8,10.12216]
[1617307848740,5.01,1975.9,1975.8,10.12216]
[1617307849565,8.74820378,1975.9,1975.8,10.12216]
[1617307849767,5.01,1976.0,1975.8,10.12216]
[1617307849967,10.88820378,1975.9,1975.8,10.12216]
[1617307850166,15.89820378,1975.9,1975.8,10.12216]
[1617307850367,10.88820378,1975.9,1975.8,10.12216]
[1617307850769,7.15,1975.9,1975.8,10.12216]
[1617307850967,10.88820378,1975.9,1975.8,10.12216]
[1617307851169,7.15,1975.9,1975.8,10.12216]
[1617307851572,10.88820378,1975.9,1975.8,10.12216]
[1617307851820,10.88820378,1975.9,1975.6,10.12129]
[1617307852021,10.88820378,1975.9,1975.3,5.79628]
[1617307852022,10.96,1975.7,1975.3,5.79628]
[1617307852220,10.96,1975.7,1975.5,10.12393]
[1617307852621,5.01,1975.6,1975.5,10.12393]
[1617307853221,17.01,1975.9,1975.5,10.12393]
[1617307854222,3.73820378,1975.8,1975.5,10.12393]
[1617307854419,3.1,1975.7,1975.5,10.12393]
[1617307855222,5.01,1975.6,1975.5,10.12393]
[1617307855823,3.1,1975.7,1975.5,10.12393]
[1617307857039,22.11,1975.6,1975.5,3e-05]
[1617307858041,10.81,1975.6,1975.5,10.12396]
[1617307858239,14.58549252,1975.6,1975.5,3e-05]
[1617307858441,10.81,1975.6,1975.5,3e-05]
[1617307859242,29.51,1975.6,1975.5,3e-05]
[1617307860295,35.35653398,1975.6,1975.5,3e-05]
[1617307860695,29.51,1975.6,1975.5,3e-05]
[1617307860896,35.35653398,1975.6,1975.5,3e-05]
[1617307861096,36.08083398,1975.6,1975.5,3e-05]
[1617307861497,17.38083398,1975.6,1975.5,3e-05]
[1617307861701,11.5343,1975.6,1975.5,3e-05]
[1617307862104,10.81,1975.6,1975.5,3e-05]
[1617307862300,25.80653398,1975.6,1975.5,3e-05]
[1617307862498,19.96,1975.6,1975.5,3e-05]
[1617307863300,25.76,1975.6,1975.5,3e-05]
[1617307863500,25.80653398,1975.6,1975.5,3e-05]
[1617307864101,22.7,1975.5,1975.4,0.0001]
[1617307864303,28.0,1975.4,1975.3,0.0001]
[1617307864502,33.01,1975.4,1975.3,0.0001]
[1617307864704,25.71,1975.4,1975.1,10.1252]
[1617307865141,13.93,1975.3,1975.2,7.59375]
[1617307865340,13.93,1975.3,1975.2,7.59354179]
[1617307866558,9.45,1975.3,1975.2,6.46397479]
[1617307867158,15.0,1975.3,1975.2,6.46397479]
[1617307867558,9.45,1975.3,1975.2,6.46397479]
[1617307867959,13.25632878,1975.3,1975.2,6.46397479]
[1617307868358,9.45,1975.3,1975.2,6.46397479]
[1617307870362,9.61060097,1975.3,1975.2,6.46397479]
[1617307870765,0.16060097,1975.3,1975.2,6.46397479]
[1617307871364,3.96692975,1975.3,1975.2,6.46397479]
[1617307871567,0.16060097,1975.3,1975.2,6.87397479]
[1617307871765,5.17060097,1975.3,1975.2,6.46397479]
[1617307872167,0.16060097,1975.3,1975.2,6.46397479]
[1617307872990,5.17060097,1975.3,1975.2,6.46397479]
[1617307873191,0.16060097,1975.3,1975.2,6.46397479]
[1617307874193,9.76060097,1975.3,1975.2,6.36397479]
[1617307874391,0.16060097,1975.3,1975.2,6.36397479]
[1617307876020,6.01060097,1975.3,1975.2,6.36397479]
[1617307877619,0.16060097,1975.3,1975.2,6.36397479]
[1617307878037,11.86060097,1975.3,1975.2,6.31397479]
[1617307878241,0.16060097,1975.3,1975.2,6.31397479]
[1617307879037,0.16060097,1975.3,1975.2,6.72397479]
[1617307882868,0.16060097,1975.3,1975.2,6.26397479]
[1617307888841,6.41060097,1975.3,1975.2,6.26397479]
[1617307889842,0.16060097,1975.3,1975.2,6.26397479]
[1617307891874,9.31060097,1975.3,1975.2,6.26397479]
[1617307892275,0.16060097,1975.3,1975.2,6.26397479]
[1617307892876,8.56060097,1975.3,1975.2,6.26397479]
[1617307894998,8.56060097,1975.3,1975.1,10.1252]
[1617307895802,8.55060097,1975.3,1975.0,1.4]
[1617307896619,16.14583097,1975.3,1975.0,1.0]
[1617307897621,3.16,1975.2,1975.0,1.0]
[1617307899265,10.75519,1975.2,1975.0,1.0]
[1617307899666,7.59519,1975.2,1975.0,1.0]
[1617307899866,7.59519,1975.2,1975.0,1.01708588]
[1617307901568,24.95632878,1975.1,1975.0,8.588e-05]
[1617307901771,35.81286276,1975.1,1975.0,8.588e-05]
[1617307901972,35.81286276,1975.1,1974.6,1.08550706]
[1617307902171,35.81286276,1975.1,1974.6,1.36550706]
[1617307902172,35.86886276,1975.1,1974.6,1.36550706]
[1617307902574,5.42,1975.0,1974.4,2.14251176]
[1617307902777,5.42,1975.0,1974.4,2.0]
[1617307902778,5.01,1974.8,1974.4,2.0]
[1617307902974,3.7883555,1974.7,1974.1,13.65662]
[1617307903172,27.33488852,1974.7,1974.1,13.65662]
[1617307903371,13.866,1974.6,1974.1,13.93662]
[1617307903571,5.01,1974.5,1974.1,13.93662]
[1617307903969,5.01,1974.5,1974.1,1.28]
[1617307904197,14.70253398,1974.6,1974.1,1.28]
[1617307904198,8.856,1974.6,1974.1,1.28]
[1617307904398,7.1283555,1974.5,1974.1,1.28]
[1617307904799,5.84653398,1974.4,1974.1,1.28]
[1617307905001,3.7883555,1974.3,1974.1,1.0]
[1617307906603,4.1683555,1974.3,1974.1,0.0001]
[1617307906820,5.98653398,1974.4,1974.1,0.0001]
[1617307907021,7.28,1974.3,1974.1,0.0001]
[1617307907222,5.98653398,1974.4,1974.1,0.0001]
[1617307907421,0.14,1974.4,1974.1,0.0001]
[1617307907819,3.91943506,1974.4,1974.1,0.0001]
[1617307908020,9.76596904,1974.4,1974.1,0.0001]
[1617307908220,0.14,1974.4,1974.1,0.0001]
[1617307912593,0.14,1974.4,1974.1,0.4001]
[1617307912991,0.14,1974.4,1974.2,0.41]
[1617307913198,10.85653398,1974.7,1974.3,6.49]
[1617307913393,5.01,1974.7,1974.5,0.41]
[1617307913792,6.52,1974.8,1974.6,8.68]
[1617307913995,10.9002,1974.9,1974.6,15.6536]
[1617307914196,10.9002,1974.9,1974.8,8.55]
[1617307914392,10.9002,1974.9,1974.8,0.4]
[1617307915201,10.9002,1974.9,1974.8,7.99472]
[1617307915403,10.9002,1974.9,1974.8,10.75472]
[1617307915602,10.9002,1974.9,1974.8,22.20472]
[1617307915799,10.9002,1974.9,1974.8,11.95472]
[1617307916601,0.15060097,1975.3,1975.2,0.38]
[1617307916808,0.15060097,1975.3,1975.2,8.7167]
[1617307917002,0.15060097,1975.3,1975.2,16.30977]
[1617307917824,0.15060097,1975.3,1975.2,20.36977]
[1617307918423,0.15060097,1975.3,1975.2,16.30977]
[1617307921647,10.75060097,1975.3,1975.2,15.92977]
[1617307921848,0.15060097,1975.3,1975.1,10.2686443]
[1617307922052,0.15060097,1975.3,1975.1,10.6586443]
[1617307922449,0.15060097,1975.3,1975.1,0.5345543]
[1617307922674,0.15060097,1975.3,1975.1,0.1445543]
[1617307922875,0.15060097,1975.3,1974.7,10.1263]
[1617307923077,17.85060001,1975.3,1974.5,2.0]
[1617307923276,15.76543506,1975.2,1974.5,2.0]
[1617307923477,10.85653398,1975.1,1974.5,2.0]
[1617307923678,0.14,1974.9,1974.5,2.0]
[1617307923875,5.15,1974.9,1974.5,2.0]
[1617307924075,5.01,1974.8,1974.5,2.0]
[1617307924276,7.73713,1974.9,1974.5,2.0]
[1617307925702,0.14,1974.9,1974.5,2.0]
[1617307926300,8.69,1974.9,1974.5,2.0]
[1617307926502,5.01,1974.8,1974.5,2.0]
[1617307927102,3.68,1974.9,1974.5,2.0]
[1617307927502,0.14,1974.9,1974.5,2.0]
[1617307927944,0.3713543,1974.9,1974.5,2.0]
[1617307928344,0.3713543,1974.9,1974.5,9.59615]
[1617307928545,3.7513543,1974.9,1974.5,9.59615]
[1617307929545,3.7513543,1974.9,1974.5,9.92515]
[1617307929747,0.3713543,1974.9,1974.5,2.329]
[1617307929949,0.3713543,1974.9,1974.5,2.0]
[1617307930146,2.82,1974.8,1974.5,2.28]
[1617307930345,0.3713543,1974.9,1974.5,2.28]
[1617307930546,0.3713543,1974.9,1974.6,0.38]
[1617307930950,0.3713543,1974.9,1974.5,2.28]
[1617307931149,0.2313543,1974.9,1974.6,0.69]
[1617307932050,0.2313543,1974.9,1974.5,2.28]
[1617307932252,0.2313543,1974.9,1974.5,2.69]
[1617307933269,0.2313543,1974.9,1974.6,7.59593]
[1617307934071,0.2313543,1974.9,1974.5,2.69]
[1617307934270,0.2313543,1974.9,1974.5,10.28632]
[1617307935075,0.2313543,1974.9,1974.5,9.87631999]
[1617307935271,0.2313543,1974.9,1974.5,7.87632]
[1617307936303,0.2313543,1974.9,1974.7,0.4]
[1617307936502,0.2313543,1974.9,1974.8,11.65]
[1617307936704,0.2313543,1974.9,1974.8,11.93]
[1617307937100,0.2313543,1974.9,1974.8,13.13]
[1617307937310,0.2313543,1974.9,1974.8,22.58]
[1617307937705,0.2313543,1974.9,1974.8,16.67]
[1617307937904,0.2313543,1974.9,1974.8,23.06438]
[1617307938104,0.2313543,1974.9,1974.8,24.26438]
[1617307938327,0.2313543,1974.9,1974.8,11.81438]
[1617307938529,0.2313543,1974.9,1974.8,11.13438]
[1617307939128,0.2313543,1974.9,1974.8,11.51438]
[1617307941348,0.2313543,1974.9,1974.8,7.97438]
[1617307941948,0.2313543,1974.9,1974.8,7.59438]
[1617307943151,0.2313543,1974.9,1974.8,10.74438]
[1617307943350,0.2313543,1974.9,1974.8,33.29438]
[1617307945210,0.2313543,1974.9,1974.8,11.94438]
[1617307946411,0.2313543,1974.9,1974.8,11.55438]
[1617307946612,0.2313543,1974.9,1974.8,10.35438]
[1617307947212,8.5813543,1974.9,1974.8,7.59438]
[1617307947812,0.2313543,1974.9,1974.8,7.59438]
[1617307952251,0.2313543,1974.9,1974.8,7.506087]
[1617307954678,0.2313543,1974.9,1974.7,10.12583]
[1617307955275,0.2313543,1974.9,1974.5,7.98623]
[1617307955512,0.2313543,1974.9,1974.5,8.29423]
[1617307957112,0.2313543,1974.9,1974.5,7.90423]
[1617307958717,0.2313543,1974.9,1974.5,8.29423]
[1617307962064,4.01078936,1974.9,1974.5,7.59623]
[1617307962264,17.89828936,1974.9,1974.3,10.12814]
[1617307962464,6.656,1974.8,1974.2,0.28]
[1617307962664,3.77943506,1974.7,1974.2,0.28]
[1617307964266,11.37724506,1974.7,1974.2,0.28]
[1617307964464,2.88,1974.6,1974.2,0.28]
[1617307965276,3.02,1974.6,1974.1,7.5982]
[1617307965478,10.61842,1974.6,1974.1,0.0001]
[1617307965677,3.04,1974.5,1974.1,0.0001]
[1617307965880,11.6092,1974.5,1974.1,0.0001]
[1617307966481,19.20824,1974.5,1974.1,0.0001]
[1617307966679,6.67943506,1974.4,1974.1,0.7291]
[1617307966880,6.67943506,1974.4,1974.1,0.2801]
[1617307967081,2.74,1974.3,1974.1,0.2801]
[1617307967309,0.056,1974.5,1974.1,0.2801]
[1617307967509,7.65491,1974.5,1974.1,0.2801]
[1617307967708,3.77943506,1974.4,1974.1,0.0001]
[1617307968307,3.44,1974.3,1974.1,0.0001]
[1617307968508,3.77943506,1974.4,1974.1,0.0001]
[1617307968708,16.4,1974.3,1974.0,0.0101]
[1617307968909,16.4,1974.3,1974.0,0.2901]
[1617307968910,3.02,1974.2,1974.0,0.2901]
[1617307969112,3.78043438,1974.1,1973.8,7.59891]
[1617307969310,3.78043438,1974.1,1973.8,0.28]
[1617307969709,3.78043438,1974.1,1973.5,0.39]
[1617307969710,9.93783438,1974.1,1973.5,0.39]
[1617307969941,2.7,1974.0,1973.5,0.67]
[1617307970139,3.78043438,1973.9,1973.5,0.67]
[1617307972774,3.78043438,1973.9,1973.5,8.27016]
[1617307972975,2.756,1974.0,1973.5,8.27016]
[1617307973775,3.78043438,1973.9,1973.5,7.99016]
[1617307973974,8.00010111,1974.0,1973.5,8.27016]
[1617307974174,2.99010111,1974.0,1973.5,8.27016]
[1617307975180,0.23410111,1974.0,1973.9,10.06]
[1617307975382,0.23410111,1974.0,1973.9,17.9853]
[1617307975581,0.23410111,1974.0,1973.9,20.7053]
[1617307975978,0.23410111,1974.0,1973.9,28.8053]
[1617307977380,0.23410111,1974.0,1973.9,20.7053]
[1617307978204,0.23410111,1974.0,1973.9,20.2953]
[1617307978405,0.23410111,1974.0,1973.9,10.6453]
[1617307978608,0.23410111,1974.0,1973.6,1.0]
[1617307978806,0.23410111,1974.0,1973.6,1.39]
[1617307980632,5.24410111,1974.0,1973.6,1.39]
[1617307980833,5.24410111,1974.0,1973.6,1.0]
[1617307980834,3.78043438,1973.9,1973.6,1.0]
[1617307981033,3.83643438,1973.9,1973.6,1.0]
[1617307981435,8.84643438,1973.9,1973.6,1.0]
[1617307981632,22.46,1973.7,1973.6,1.0]
[1617307981833,28.30653398,1973.7,1973.6,1.0]
[1617307982631,22.46,1973.7,1973.6,1.0]
[1617307982831,28.30653398,1973.7,1973.6,1.0]
[1617307983258,22.84,1973.7,1973.6,0.5]
[1617307983461,28.68653398,1973.7,1973.6,0.5]
[1617307983659,5.01,1973.7,1973.6,0.5]
[1617307984065,10.85653398,1973.8,1973.6,0.5]
[1617307984266,0.23410111,1974.0,1973.6,0.5]
[1617307984464,2.76,1973.9,1973.6,1.17]
[1617307984665,2.76,1973.9,1973.6,8.09974]
[1617307985262,4.08102749,1974.0,1973.6,8.09974]
[1617307986096,5.01,1973.8,1973.6,0.5]
[1617307986296,27.0165669,1973.7,1973.6,0.5]
[1617307986495,32.86310088,1973.7,1973.6,0.5]
[1617307986893,27.0165669,1973.7,1973.6,0.5]
[1617307987293,27.0165669,1973.7,1973.6,0.0001]
[1617307987496,32.86310088,1973.7,1973.6,0.0001]
[1617307988308,5.84653398,1973.7,1973.6,0.0001]
[1617307988508,5.01,1973.8,1973.6,0.0001]
[1617307988706,10.53,1973.7,1973.6,0.0001]
[1617307989509,2.78,1973.7,1973.6,8.51039]
[1617307989713,0.31446059,1974.0,1973.6,11.33039]
[1617307990115,0.31446059,1974.0,1973.9,12.03]
[1617307991236,0.31446059,1974.0,1973.9,19.62722]
[1617307991436,0.31446059,1974.0,1973.9,24.08722]
[1617307995267,0.31446059,1974.0,1973.9,12.43722]
[1617307999714,0.31446059,1974.0,1973.9,25.48722]
[1617308000550,0.31446059,1974.0,1973.9,12.43722]
[1617308001755,0.31446059,1974.0,1973.9,19.38722]
[1617308003561,0.31446059,1974.0,1973.9,38.38722]
[1617308003763,0.31446059,1974.0,1973.9,45.73602]
[1617308004180,0.14,1974.7,1974.5,0.4]
[1617308004380,17.69553398,1975.0,1974.5,0.4]
[1617308004381,11.905,1975.0,1974.5,0.4]
[1617308004578,17.75153398,1975.0,1974.5,0.4]
[1617308004981,17.75153398,1975.0,1974.7,7.59575]
[1617308005579,11.905,1975.0,1974.7,7.59575]
[1617308006181,17.75153398,1975.0,1974.7,7.59575]
[1617308006381,11.905,1975.0,1974.7,7.59575]
[1617308012236,11.849,1975.0,1974.7,7.59575]
[1617308012439,11.849,1975.0,1974.8,0.4]
[1617308012639,11.849,1975.0,1974.8,0.68]
[1617308013238,11.849,1975.0,1974.6,6.2231395]
[1617308013839,11.849,1975.0,1974.8,10.12645]
[1617308014659,11.849,1975.0,1974.6,2.7]
[1617308014860,11.849,1975.0,1974.6,10.29649]
[1617308014861,11.799,1975.0,1974.6,10.29649]
[1617308015064,11.799,1975.0,1974.6,7.59649]
[1617308015663,11.799,1975.0,1974.5,0.28]
[1617308015863,17.64553398,1975.0,1974.5,0.28]
[1617308016062,0.44963773,1974.6,1974.5,0.28]
[1617308016268,0.44963773,1974.6,1974.3,0.4]
[1617308016465,0.44963773,1974.6,1974.3,0.68]
[1617308016665,0.44963773,1974.6,1974.3,8.27744]
[1617308019713,0.44963773,1974.6,1974.3,11.03744]
[1617308021715,25.24289398,1975.0,1974.3,11.03744]
[1617308021916,0.14,1974.9,1974.4,0.413]
[1617308022117,6.51067011,1974.5,1974.4,0.413]
[1617308022738,6.51067011,1974.5,1974.2,10.40953]
[1617308022940,6.51067011,1974.5,1974.2,0.28]
[1617308023342,13.62127011,1974.5,1973.7,1.2]
[1617308023541,13.62127011,1974.5,1974.1,0.39]
[1617308023742,3.7527676,1974.4,1974.1,0.39]
[1617308023942,3.7527676,1974.4,1973.9,0.8]
[1617308023943,10.75360158,1974.4,1973.9,0.8]
[1617308024144,11.07969,1974.3,1974.0,0.39]
[1617308024738,16.92622398,1974.3,1974.0,0.39]
[1617308024961,16.92622398,1974.3,1973.9,0.42]
[1617308025163,13.44622398,1974.3,1973.8,7.99897]
[1617308025362,7.59969,1974.3,1973.8,8.27897]
[1617308026769,2.72,1974.2,1973.8,8.27897]
[1617308027583,0.16070673,1974.1,1973.8,8.27897]
[1617308027985,0.16070673,1974.1,1973.9,0.41]
[1617308028385,0.16070673,1974.1,1973.8,0.28]
[1617308028584,0.16070673,1974.1,1973.8,0.69]
[1617308029686,0.16070673,1974.1,1973.9,7.59854]
[1617308030313,0.16070673,1974.1,1973.8,0.69]
[1617308031314,0.16070673,1974.1,1974.0,0.51]
[1617308032312,8.56070673,1974.1,1974.0,0.51]
[1617308032712,0.16070673,1974.1,1974.0,0.51]
[1617308034254,8.96070673,1974.1,1974.0,0.51]
[1617308034457,0.16070673,1974.1,1974.0,0.51]
[1617308034654,0.16070673,1974.1,1974.0,0.89]
[1617308035054,0.16070673,1974.1,1974.0,0.51]
[1617308035254,5.96070673,1974.1,1974.0,0.51]
[1617308037660,0.16070673,1974.1,1974.0,0.51]
[1617308038282,10.76070673,1974.1,1974.0,0.51]
[1617308038483,0.16070673,1974.1,1974.0,0.51]
[1617308039281,7.31070673,1974.1,1974.0,0.51]
[1617308039482,0.16070673,1974.1,1974.0,0.51]
[1617308041115,0.16070673,1974.1,1974.0,0.91]
[1617308041513,0.16070673,1974.1,1974.0,0.51]
[1617308041913,1.17332519,1974.1,1974.0,0.51]
[1617308042112,0.16070673,1974.1,1974.0,0.51]
[1617308043939,0.16070673,1974.1,1974.0,8.50813]
[1617308044140,0.16070673,1974.1,1974.0,22.95813]
[1617308044339,0.16070673,1974.1,1974.0,26.39813]
[1617308045340,0.16070673,1974.1,1974.0,27.59813]
[1617308045641,0.16070673,1974.1,1974.0,35.59813]
[1617308045840,0.16070673,1974.1,1974.0,35.59812988]
[1617308046262,0.16070673,1974.1,1974.0,35.73215955]
[1617308050615,21.84915,1975.4,1974.0,35.73215955]
[1617308050816,21.84915,1975.4,1974.1,3.84409254]
[1617308050817,0.14,1974.8,1974.1,3.84409254]
[1617308051016,0.14,1974.8,1974.6,0.4]
[1617308051214,14.66623398,1975.3,1974.6,8.2174]
[1617308051412,0.14,1975.2,1974.7,0.413]
[1617308051815,0.14,1975.2,1974.8,7.59513]
[1617308052016,0.14,1975.2,1974.5,10.12608]
[1617308052017,0.4,1975.1,1974.5,10.12608]
[1617308052217,0.4,1975.1,1974.4,0.01174186]
[1617308052218,11.82365161,1975.1,1974.4,0.01174186]
[1617308052417,5.90253398,1975.0,1974.3,0.01175485]
[1617308052614,5.90253398,1975.0,1974.2,0.01175938]
[1617308052615,3.96,1974.9,1974.2,0.01175938]
[1617308052817,3.96,1974.9,1974.1,0.41763907]
[1617308052818,0.14,1974.8,1974.1,0.69176394]
[1617308053015,5.01,1974.7,1974.1,0.69176394]
[1617308053837,0.21667417,1974.6,1974.1,0.01176394]
[1617308054039,7.81493417,1974.6,1974.0,0.80177553]
[1617308054237,12.82493417,1974.6,1974.0,0.80177553]
[1617308054438,2.68,1974.5,1974.0,0.80177553]
[1617308055035,2.68,1974.5,1974.0,0.52177553]
[1617308055440,7.59939,1974.3,1974.0,0.52177553]
[1617308055838,7.59939,1974.3,1974.0,0.51]
[1617308059285,0.16069452,1974.2,1974.0,0.51]
[1617308059483,0.16069452,1974.2,1974.0,0.42]
[1617308060884,0.16069452,1974.2,1974.0,0.53]
[1617308065133,7.76062452,1974.2,1974.0,0.53]
[1617308065534,7.76062452,1974.2,1974.0,5.97]
[1617308066538,7.76062452,1974.2,1974.0,6.36]
[1617308066739,0.16069452,1974.2,1974.0,6.36]
[1617308067166,0.16069452,1974.2,1974.1,0.39]
[1617308067967,0.16069452,1974.2,1974.0,5.97]
[1617308068169,0.16069452,1974.2,1974.0,6.37]
[1617308068368,0.10010196,1974.1,1974.0,6.37]
[1617308068571,0.10010196,1974.1,1974.0,5.97]
[1617308069172,0.10010196,1974.1,1974.0,6.35]
[1617308070797,0.26080462,1974.1,1974.0,13.35]
[1617308071203,0.26080462,1974.1,1974.0,19.56]
[1617308071401,0.26080462,1974.1,1974.0,28.401]
[1617308071599,0.26080462,1974.1,1974.0,28.41278283]
[1617308071801,0.26080462,1974.1,1974.0,28.4186561]
[1617308071998,0.26080462,1974.1,1974.0,28.401]
[1617308072414,0.26080462,1974.1,1974.0,28.342266]
[1617308073017,0.26080462,1974.1,1974.0,27.142266]
[1617308073220,0.26080462,1974.1,1974.0,18.391]
[1617308073420,0.26080462,1974.1,1974.0,14.191]
[1617308073619,0.26080462,1974.1,1974.0,20.2711]
[1617308073820,0.16070266,1974.1,1974.0,20.2711]
[1617308074216,0.16070266,1974.1,1974.0,13.2711]
[1617308074421,0.16070266,1974.1,1974.0,20.86758]